Cogmind - Beta 13 @@@ ROGUE MODE // 2024.04.13 @ 14:33:37 Player: Cheeriohz Result: Destroyed by RQ-VPA(R) with Subdweller Laser Performance ------------- Evolutions (0) 0 Regions Visited (2) 400 Robots Destroyed (24) 120 Value Destroyed (531) 531 Prototype IDs (0) 0 Alien Tech Used (0) 0 Bonus (0) 0 TOTAL SCORE: 1051 Bonus ------- None Cogmind --------- Core Integrity 0/250 Matter 255/300 Energy 95/100 System Corruption 0% Temperature Cool (6) Movement Rolling (110) Location -10/Subcaves Parts ------- > --- POWER (1) -------- Subdweller Power Source > --- PROPULSION (2) --- Subdweller Monowheel > --- UTILITY (2) ------ Hardened Light Armor Plating Makeshift System Restoration Module > --- WEAPON (2) ------- Battle Rifle Mini Grenade Launcher > --- INVENTORY (5) ---- Large Matter Pod (93) Subdweller Laser Subdweller Machine Gun Makeshift Axe Peak State ------------ > --- POWER ------------ Subdweller Power Source > --- PROPULSION ------- Subdweller Monowheel Subdweller Monowheel > --- UTILITY ---------- Hardened Light Armor Plating Makeshift System Restoration Module > --- WEAPON ----------- Battle Rifle Subdweller Machine Gun > --- INVENTORY -------- Large Matter Pod Subdweller Laser Subdweller Machine Gun Mini Grenade Launcher Makeshift Axe [Rating: 17] Favorites ----------- Power Light Ion Engine Engine Light Ion Engine Propulsion Subdweller Monowheel Treads Light Treads Leg Aluminum Leg Wheel Subdweller Monowheel Utility Hardened Light Armor Plating Device Seismic Detector Storage High-capacity Storage Unit Protection Hardened Light Armor Plating Weapon Light Assault Rifle Energy Gun Medium Laser Ballistic Gun Light Assault Rifle Launcher Mini Grenade Launcher Slashing Weapon Mining Claw Build | -11 -10 -10 ------- Run | Yrd Mat Sub Slots Evolved . | . . . Power . | . . . Propulsion . | . . . Utility . | . . . Weapon . | . . . Parts Attached 34 | 4 10 20 Power 1 | . . 1 Engine 1 | . . 1 Core . | . . . Reactor . | . . . Propulsion 8 | 3 . 5 Treads 3 | . . 3 Leg . | . . . Wheel 5 | 3 . 2 Hover . | . . . Flight . | . . . Utility 9 | 1 4 4 Device 2 | 1 . 1 Storage 2 | . 2 . Processor . | . . . Hackware . | . . . Protection 5 | . 2 3 Artifact . | . . . Weapon 16 | . 6 10 Energy Gun 1 | . 1 . Energy Cannon . | . . . Ballistic Gun 8 | . 2 6 Ballistic Cannon . | . . . Launcher 4 | . 2 2 Special Weapon . | . . . Impact Weapon . | . . . Slashing Weapon 3 | . 1 2 Piercing Weapon . | . . . Special Melee Weapon . | . . . Unidentified Prototypes . | . . . Parts Lost 7 | . . 7 Power 1 | . . 1 Propulsion 2 | . . 2 Utility 2 | . . 2 Weapon 2 | . . 2 Highest Loss Streak 2 | . . 2 To Critical Strikes . | . . . Average Slot Usage (%) 95 | . 100 91 Engine 12 | . 14 11 Treads 1 | . . 2 Wheel 26 | . 28 25 Device 3 | . 2 3 Storage 6 | . 14 . Protection 15 | . 11 18 Energy Gun 6 | . 12 1 Ballistic Gun 18 | . 13 21 Slashing Weapon 3 | . 1 4 Naked Turns . | . . . Heaviest Build 89 | 12 89 51 Greatest Support 40 | 26 20 40 Greatest Overweight (x) 8 | 1 4 8 Average Overweight (x) 1 | . 2 . Largest Inventory Capacity 25 | 8 25 20 Average Capacity 12 | 8 20 5 Most Carried 20 | 7 20 20 Average Carried 9 | 4 15 5 Final Capacity 20 | 8 20 5 Final Carried 20 | 7 20 4 Class Distribution -------------------- 68% | Mutant 24% | Scavenger-Mutant 7% | Subdweller-Mutant Dominant Class ---------------- Mutant | -10/Materials Scavenger-Mutant | -10/Subcaves Resources | -11 -10 -10 ----------- Run | Yrd Mat Sub Matter Collected 765 | 254 75 436 Remotely . | . . . Salvage Created 643 | 150 104 389 Parts 52 | 8 14 30 Haulers Intercepted . | . . . Recyclers Shooed 1 | 1 . . Parts Field Recycled . | . . . Retrieved Matter . | . . . Parts Self-Destructed 12 | . . 12 Prevented . | . . . Kills | -11 -10 -10 ------- Run | Yrd Mat Sub Combat Hostiles Destroyed 16 | . 9 7 Guns 7 | . 1 6 AOE 9 | . 8 1 Classes Destroyed 8 | 2 4 2 Builder 1 | . 1 . Tunneler 4 | 4 . . Recycler 1 | 1 . . Watcher 2 | . 2 . Swarmer 6 | . 6 . Grunt 3 | . 3 . Sentry 1 | . . 1 Subdweller 6 | . . 6 Best Kill Streak 6 | 3 6 2 Combat Bots Only 5 | . 5 2 Max Kills in Single Turn 2 | 1 2 1 Gunslinging . | . . . Exploded 2 | . 2 1 Melee . | . . . Uniques/NPCs Destroyed . | . . . Combat | -11 -10 -10 -------- Run | Yrd Mat Sub Hostile Shots Fired 68 | . 17 51 Missed 17 | . 4 13 Damage Taken 1127 | . 171 956 Core 250 | . 62 188 Absorbed by Shields . | . . . Core Remaining (%) 100 | 100 . . Volleys Fired 63 | 14 19 30 Largest 2 | 2 2 2 Hottest 70 | 70 70 70 Shots Fired 108 | 28 31 49 Gun 97 | 28 24 45 Cannon . | . . . Launcher 11 | . 7 4 Special . | . . . Kinetic 65 | 14 12 39 Thermal 32 | 14 12 6 Explosive 11 | . 7 4 Electromagnetic . | . . . Robot Hit Streak 15 | 5 3 15 Robot Miss Streak 7 | 2 7 1 Penetration Max . | . . . Secondary Targets 2 | . . 2 Max Gunslinging Chain 1 | . . 1 Shots Hit Robots 68 | 18 8 42 Core Hits 45 | 7 17 21 Critical Kills . | . . . Critical Parts Destroyed . | . . . Critical Strikes 2 | 1 . 1 Burn 2 | 1 . 1 Melee Attacks 25 | . 1 24 Impact . | . . . Slashing 25 | . 1 24 Piercing . | . . . Sneak Attacks . | . . . Combat Hostiles . | . . . Follow-up Attacks . | . . . Damage Inflicted 2169 | 197 933 1039 Guns 820 | 197 93 530 Cannons . | . . . Explosions 1110 | . 838 272 Melee 237 | . . 237 Ramming 2 | . 2 . Kinetic 542 | 71 15 456 Thermal 278 | 126 78 74 Explosive 1110 | . 838 272 Electromagnetic . | . . . Impact . | . . . Slashing 237 | . . 237 Piercing . | . . . Highest Corruption . | . . . Average Corruption . | . . . Corruption Purged . | . . . Corruption Blocked . | . . . Overload Shots . | . . . Overflow Damage 87 | . 57 30 Projectiles . | . . . Explosions 87 | . 57 30 Melee . | . . . Knockbacks . | . . . Impact . | . . . Kinetic . | . . . Secondary . | . . . Self-Inflicted Damage 76 | . 1 75 Shots 2 | . . 2 Rammed 1 | . 1 . Targets Rammed 1 | . 1 . Kicked . | . . . Crushed . | . . . Highest Temperature 170 | 170 148 . Average Temperature 64 | 79 52 . Received Heat Transfer 174 | . 45 129 Siege Activations . | . . . Robots Corrupted . | . . . Combat Hostiles . | . . . Parts Fried . | . . . Impact Corruptions . | . . . Robots Melted . | . . . Combat Hostiles . | . . . Parts Melted 3 | . . 3 Heat Transferred 962 | 444 222 296 Parts Sabotaged . | . . . Parts Stolen . | . . . Parts Stripped . | . . . Power Chain Reactions . | . . . Alert | -11 -10 -10 ------- Run | Yrd Mat Sub Peak Influence 256 | 25 256 . Initial 16 | . 16 . Average 123 | 14 138 . Maximum Alert Level 1 | . 1 . Low Security (%) 69 | 100 64 . Level 1 30 | . 35 . Level 2 . | . . . Level 3 . | . . . Level 4 . | . . . Level 5 . | . . . High Security . | . . . Max Security . | . . . Squads Dispatched 1 | . 1 . Investigation . | . . . Extermination . | . . . Reinforcement 1 | . 1 . Assault . | . . . Garrison . | . . . Intercept . | . . . Searches Triggered . | . . . Construction Impeded . | . . . Haulers Reinforced . | . . . Active Scanning Responses . | . . . Cargo Convoy Interrupts . | . . . Stealth | -11 -10 -10 --------- Run | Yrd Mat Sub Distress Signals 1 | . 1 . Communications Jammed . | . . . Distress Signals . | . . . Times Spotted 23 | . 14 9 Peak Tracking Total 6 | . 6 4 Tactical Retreats . | . . . Traps | -11 -10 -10 ------- Run | Yrd Mat Sub Traps Triggered 2 | . 2 . Indirectly . | . . . Trap Hack Attempts . | . . . Triggered . | . . . Disarmed . | . . . Reprogrammed . | . . . Reused . | . . . Traps Extracted . | . . . Installed . | . . . Triggered . | . . . Machines | -11 -10 -10 ---------- Run | Yrd Mat Sub Machines Disabled . | . . . Max in Single Turn . | . . . Machines Repaired . | . . . Machines Dismantled . | . . . Machines Sabotaged . | . . . Overloaded Fab Kills . | . . . Hacking | -11 -10 -10 --------- Run | Yrd Mat Sub Machines Accessed 7 | . 7 . Terminals 7 | . 7 . Fabricators . | . . . Repair Stations . | . . . Recycling Units . | . . . Scanalyzers . | . . . Garrison Access . | . . . Total Hacks 20 | . 20 . Successful 12 | . 12 . Failed 8 | . 8 . Catastrophic 2 | . 2 . Database Lockouts . | . . . Manual 17 | . 17 . Terminals 20 | . 20 . Fabricators . | . . . Repair Stations . | . . . Recycling Units . | . . . Scanalyzers . | . . . Garrison Access . | . . . Terminal Hacks 6 | . 6 . Robot Analysis 2 | . 2 . Terminal Index 1 | . 1 . Locate Traps 1 | . 1 . Recall Reinforcements 1 | . 1 . Registered Prototypes 1 | . 1 . Fabricator Hacks . | . . . Repair Station Hacks . | . . . Recycling Unit Hacks . | . . . Scanalyzer . | . . . Garrison Access Hacks . | . . . Unauthorized Hacks 6 | . 6 . Terminals 6 | . 6 . Botnet 6 | . 6 . Fabricators . | . . . Repair Stations . | . . . Recycling Units . | . . . Scanalyzers . | . . . Garrison Access . | . . . Data Cores Recovered . | . . . Used . | . . . Hacking Detections 7 | . 7 . Full Trace Events . | . . . Feedback Events . | . . . Feedback Blocked . | . . . Robot Schematics Acquired . | . . . Robots Built . | . . . Authchips . | . . . Time . | . . . Total Robot Build Rating . | . . . Part Schematics Acquired . | . . . Parts Built . | . . . Authchips . | . . . Time . | . . . Total Part Build Rating . | . . . Parts Repaired . | . . . Time . | . . . Parts Recycled . | . . . Recycled Matter . | . . . Retrieved Matter . | . . . Retrieved Components . | . . . Parts Scanalyzed . | . . . Part Schematics Acquired . | . . . Parts Damaged . | . . . Bothacking | -11 -10 -10 ------------ Run | Yrd Mat Sub Used RIF Installer . | . . . Robots Hacked . | . . . Non-combat . | . . . Combat . | . . . Robot Hacks Applied . | . . . Relay Couplers Released . | . . . Fabnet Peak Effective % . | . . . Robots Rewired . | . . . Allies Hacked . | . . . Hacks Repelled . | . . . Allies | -11 -10 -10 -------- Run | Yrd Mat Sub Total Allies . | . . . Largest Group . | . . . Highest-Rated Group . | . . . Highest-Rated Ally . | . . . Total Orders . | . . . Ally Attacks . | . . . Total Damage . | . . . Kills . | . . . Allies Corrupted . | . . . Allies Melted . | . . . Intel | -11 -10 -10 ------- Run | Yrd Mat Sub Robot Analysis Total 2 | . 2 . Derelict Logs Recovered 2 | . . 2 Drone Launches . | . . . Drone Recoveries . | . . . Exploration | -11 -10 -10 ------------- Run | Yrd Mat Sub Turns Passed 1955 | 112 805 1038 Spaces Moved 1193 | 44 454 695 Core 1 | . . 1 Treads 35 | . . 35 Legs . | . . . Wheels 1157 | 44 454 659 Hover . | . . . Flight . | . . . Fastest Speed 80 | 80 80 110 Average Speed 114 | 84 116 115 Slowest Speed 450 | 95 140 450 Overloaded Moves . | . . . Propulsion Burnouts . | . . . Robots Hopped . | . . . Cave-ins Triggered . | . . . Exploration Rate (%) 43 | 3 87 40 Regions Visited 2 Branch Regions 1 Pre-discovered Areas 1 | . . 1 Known Exits Taken . | . . . Unknown Exits Taken 2 | 1 1 . Scrap Searched 1 | . . 1 Spaces Dug 1 | . 1 . Terrain Destroyed 49 | . 33 16 Melee 1 | . 1 . Projectile . | . . . AOE 48 | . 32 16 Terrain Rammed . | . . . Walls Destroyed . | . . . Machines Disabled . | . . . Actions | -11 -10 -10 --------- Run | Yrd Mat Sub Total 1625 | 92 697 836 Wait 264 | 26 194 44 Move 1191 | 43 453 695 Hop . | . . . Pick Up 23 | 2 14 7 Fast Attach 13 | 2 1 10 Attach 3 | . . 3 Detach 3 | 1 1 1 Swap 18 | 2 9 7 Drop 20 | 2 4 14 Fire 63 | 14 19 30 Melee 25 | . 1 24 Ram 1 | . 1 . Kick . | . . . Crush . | . . . Escape Stasis . | . . . Rewire . | . . . Trap . | . . . Miscellaneous 1 | . . 1 Route ------- -11/Scrapyard -10/Materials (discovered 4 exits: [*Mat x3] / [*Sub]) -10/Subcaves History --------- Turn | Location | Event 14 | -11/Scrapyard | Discovered new exit (range 3) 113 | -11/Scrapyard | Entered Materials 307 | -10/Materials | Build established: Mutant 392 | -10/Materials | Discovered new exit (range 16) 503 | -10/Materials | Discovered new exit (range 16) 645 | -10/Materials | Discovered new exit (range 16) 899 | -10/Materials | Discovered new exit (range 5) 918 | -10/Materials | Entered Subcaves 1119 | -10/Subcaves | Core integrity fell below 50% 1130 | -10/Subcaves | Learned location of Storage (-7) 1348 | -10/Subcaves | A swath of the cavern ceiling suddenly collapsed 1397 | -10/Subcaves | A swath of the cavern ceiling suddenly collapsed 1500 | -10/Subcaves | Shifting Twisted Machinery released Sub. Power Source 1685 | -10/Subcaves | Learned Materials stockpile data 1690 | -10/Subcaves | Shifting Twisted Machinery released Ripper 1691 | -10/Subcaves | Shifting Twisted Machinery released Mak. System Restoration Module 1831 | -10/Subcaves | Build established: Scavenger-Mutant 1944 | -10/Subcaves | Ambushed by Subdweller buried in earth 1944 | -10/Subcaves | Ambushed by Subdweller buried in earth 1956 | -10/Subcaves | Destroyed by RQ-VPA(R) with Subdweller Laser Last Messages --------------- 01561_ Acquired Mak. Axe. 01570_ The unstable cave ceiling collapses. 01571_ Lgt. Treads fries itself beyond repair. 01586_ Sub. Power Source shoots sparks and powers down. 01685_ Acquired derelict log, extracted data. Data stored: Materials stockpile data. Ripper falls loose from the Twisted Machinery. Mak. System Restoration Module falls loose from the Twisted Machinery. 01696_ Acquired Mak. System Restoration Module. 01779_ Sub. Monowheel shoots sparks and powers down. 01945_ 84-SJI(R): "FREEEEDUMB!" 01945_ D1-0FF(R): "ARGHSUB!" 01945_ RQ-VPA(R): "NAT20!" 01948_ KO-JVW(R) destroyed. 01948_ Switching to secondary target: D1-0FF(R). 01952_ Sub. Machine Gun destroyed. 01954_ Broken Sub. Monowheel destroyed. 01954_ Destroyed Broken Sub. Monowheel. 01954_ 84-SJI(R) destroyed. 01956_ Critical hit (Destroy). Map ----- +----------------------------------------------------+ | ?????????# ##??##""""#?## #???????# | | ?????????## ##????##""""## ####????## | | ??????????#######??????# " " ##????## | | ???????????????????????### #?????# | | ?????????????????????????# ##?????#### | | ?????????????????????????# ######?????????## | | ?????????????????????????## "#?????????????## | | ??????????????????????????##"/"#####?????????# = # | | ???????????????????????????# "" "##????????# /# | | ???????????????????????????# "" ""#????????# | | ???????????????????????????## "" #???????### | | ????????????????????????????## ""##??????## # | | ?????????????????????????????## ""##???????# | | ??????????????????????????????# "##????????## | | ??????????????????????????????# ##???####??## | | ?????????????????????????####?# #??## ##?# | | ????????????????????????## ### ##?## ### | | ????????????????????????# ### | | ????????????????????????# | | ????????????????????????## | | ????????????????????????## # | | ??????????????????####### #### | | ??????????????????# ; ## ## | | ??????????????????# ### ## ## | | ??????????????????# ## ######### | | ??????????????????# R @ ## ##??????### | | ??????????????????# %* ## #????????? | | ??????????????????## R # #????????? | | ???????????????????# & # ## #????????? | | ?????????????????? % # ## ##????????? | | ???????????????? ;# ##### #?????????? | | ?????????????? ### ### #????# ###?????????? | | ????????????? ##??######?##?????###???????????? | | ?????????????###?????????????????????????????????? | | ?????????????????????????????????????????????????? | | ?????????????????????????????????????????????????? | | ?????????????????????????????????????????????????? | | ?????????????????????????????????????????????????? | | ?????????????????????????????????????????????????? | | ?????????????????????????????????????????????????? | | ?????????????????????????????????????????????????? | | ?????????????????????????????????????????????????? | | ?????????????????????????????????????????????????? | | ?????????????????????????????????????????????????? | | ?????????????????????????????????????????????????? | | ?????????????????????????????????????????????????? | | ?????????????????????????????????????????????????? | | ?????????????????????????????????????????????????? | | | | | +----------------------------------------------------+ Best States ------------- Heat Dissipation 25 Energy Generation 15 Energy Capacity 200 Matter Stores 300 Matter Capacity 300 Sight Range 16 Terrain Scan Density 10 Armor Coverage 800 Evasion (%) 44 Recoil Reduction 2 Item Schematics ----------------- None Robot Schematics ------------------ None Fabricated ------------ Nothing Alien Tech Used ----------------- None Achievements -------------- None Challenges ------------ None Game ------ Seed IntegratedControlDetector Manual? 0 Play Time 00:17:30 Cumulative 114.8 hours Start 2024.04.13 @ 14:17:19 End 2024.04.13 @ 14:33:37 Sessions 1 Manual Loads 0 Difficulty Rogue Special Mode None Game No. 108 Rogue 108 Adventurer 0 Explorer 0 Win Type - Total 3 Types 2/0/0/1/0/0/0/0/0 Lore% 51 Gallery% 69 Achievement% 52 Wizard Run 0 Options --------- Layout 1 ASCII 0 Keyboard 1 Movement Numpad Keybinds 0 Fullscreen 1 Font 32/SmallcapsGlow Map View 77x35 Zoom Use 0% Tactical HUD 1 Map Filters NONE Filters NONE Steam 1 RUN: 5235cff6-5641-40fc-9184-9386ed3948cc